bitfinex/quotes_BTCUSD_20250218
["timestamp","ask_amount","ask_price","bid_price","bid_amount"]
[1739840632611,1.946952,95829.0,95828.0,0.00038454]
[1739840632830,1.84444835,95829.0,95828.0,0.00038454]
[1739840635470,1.84244835,95829.0,95828.0,0.00038454]
[1739840635806,1.84344835,95829.0,95828.0,0.00038454]
[1739840636310,1.84444835,95829.0,95828.0,0.00038454]
[1739840638662,1.53324835,95829.0,95828.0,0.00038454]
[1739840639644,1.45354835,95829.0,95828.0,0.00038454]
[1739840639842,1.556052,95829.0,95828.0,0.00038454]
[1739840640848,1.45354835,95829.0,95828.0,0.00038454]
[1739840641087,1.45154835,95829.0,95828.0,0.00038454]
[1739840641389,1.45254835,95829.0,95828.0,0.00038454]
[1739840641817,0.32814835,95829.0,95828.0,0.00038454]
[1739840642017,3.74214235,95829.0,95828.0,0.00038454]
[1739840643572,1.84624835,95829.0,95828.0,0.00038454]
[1739840643777,1.60954835,95829.0,95828.0,0.00038454]
[1739840644912,1.60754835,95829.0,95828.0,0.00038454]
[1739840645204,1.60854835,95829.0,95828.0,0.00038454]
[1739840646215,1.60754835,95829.0,95828.0,0.00038454]
[1739840646431,1.60954835,95829.0,95828.0,0.00038454]
[1739840646568,0.50484835,95829.0,95828.0,0.08318454]
[1739840646975,0.50584835,95829.0,95828.0,0.08318454]
[1739840647388,0.001,95829.0,95828.0,0.12908454]
[1739840648215,0.156527,95830.0,95828.0,0.12908454]
[1739840648593,0.002,95829.0,95828.0,0.12908454]
[1739840649137,0.003,95829.0,95828.0,0.12908454]
[1739840649478,0.156527,95830.0,95828.0,0.12908454]
[1739840655291,0.22931587,95834.0,95828.0,0.12908454]
[1739840655292,0.156528,95829.0,95828.0,0.12908454]
[1739840666693,0.156528,95829.0,95828.0,0.12908454]
[1739840668548,0.156528,95829.0,95828.0,0.13008454]
[1739840668745,0.156528,95829.0,95828.0,0.12908454]
[1739840669156,0.156528,95829.0,95828.0,0.13008454]
[1739840671972,0.156528,95829.0,95828.0,0.12908454]
[1739840672178,0.156528,95829.0,95828.0,0.13008454]
[1739840672312,0.156528,95829.0,95828.0,0.12908454]
[1739840672739,0.156528,95829.0,95828.0,0.13008454]
[1739840676649,0.306527,95830.0,95828.0,0.12908454]
[1739840676899,0.306527,95830.0,95828.0,0.13008454]
[1739840677046,0.156528,95829.0,95828.0,0.13008454]
[1739840678238,0.156528,95829.0,95828.0,0.12908454]
[1739840678936,0.156528,95829.0,95828.0,0.13008454]
[1739840679551,0.10175529,95830.0,95828.0,0.13008454]
[1739840679747,0.22504986,95831.0,95828.0,0.13008454]
[1739840679748,0.156528,95829.0,95828.0,0.13008454]
[1739840691783,0.2176174,95829.0,95828.0,0.00138454]
[1739840692148,3.6306114,95829.0,95828.0,0.00138454]
[1739840692885,3.569522,95829.0,95828.0,0.00138454]
[1739840693676,3.569522,95829.0,95828.0,0.00038454]
[1739840694303,3.573522,95829.0,95828.0,0.00038454]
[1739840694470,3.569522,95829.0,95828.0,0.00038454]
[1739840694947,3.573522,95829.0,95828.0,0.00038454]
[1739840695274,3.67602565,95829.0,95828.0,0.00038454]
[1739840695947,3.573522,95829.0,95828.0,0.00038454]
[1739840697998,3.569522,95829.0,95828.0,0.00038454]
[1739840698381,3.572522,95829.0,95828.0,0.00038454]
[1739840699187,0.159528,95829.0,95828.0,0.00038454]
[1739840699538,3.572522,95829.0,95828.0,0.00038454]
[1739840699742,3.67502565,95829.0,95828.0,0.00038454]
[1739840700372,3.82502565,95829.0,95828.0,0.00038454]
[1739840700566,3.82502565,95829.0,95814.0,0.0003406]
[1739840700567,0.15,95823.0,95814.0,0.0003406]
[1739840700777,0.15,95824.0,95806.0,0.0797]
[1739840700778,0.15,95812.0,95806.0,0.0797]
[1739840700990,0.156564,95807.0,95806.0,0.0797]
[1739840701212,3.569558,95807.0,95806.0,0.0797]
[1739840701589,3.60525711,95807.0,95806.0,0.0797]
[1739840702450,3.70776076,95807.0,95806.0,0.0797]
[1739840703154,3.60525711,95807.0,95806.0,0.0797]
[1739840703616,3.60625711,95807.0,95806.0,0.0797]
[1739840703942,3.60525711,95807.0,95806.0,0.0797]
[1739840704361,3.60525711,95807.0,95799.0,0.0479]
[1739840704362,0.156574,95801.0,95800.0,0.0776]
[1739840704963,0.21765281,95801.0,95800.0,0.0776]
[1739840705583,3.63064681,95801.0,95800.0,0.0786]
[1739840705764,3.63064681,95801.0,95800.0,0.001]
[1739840705991,3.66102909,95801.0,95800.0,0.001]
[1739840706164,3.76353274,95801.0,95800.0,0.001]
[1739840706363,3.91353274,95801.0,95800.0,0.001]
[1739840706992,0.156581,95797.0,95796.0,0.0003406]
[1739840707601,0.23198623,95797.0,95796.0,0.0003406]
[1739840708032,0.156581,95797.0,95796.0,0.0003406]
[1739840708238,0.15666384,95797.0,95796.0,0.0003406]
[1739840708441,0.15966384,95797.0,95796.0,0.0003406]
[1739840709073,0.00308284,95797.0,95796.0,0.0760406]
[1739840709704,0.00308284,95797.0,95796.0,0.2820226]
[1739840710028,0.00308284,95797.0,95796.0,0.33117148]
[1739840710421,8.284e-05,95797.0,95796.0,0.2820226]
[1739840710902,0.00208284,95797.0,95796.0,0.1254406]
[1739840711365,0.00208284,95797.0,95796.0,0.1274406]
[1739840713072,0.00208284,95797.0,95796.0,0.2840226]
[1739840713284,0.00208284,95797.0,95796.0,0.33337118]
[1739840713491,8.284e-05,95797.0,95796.0,0.33137118]
[1739840713835,8.284e-05,95797.0,95796.0,0.33237118]
[1739840714036,8.284e-05,95797.0,95796.0,0.33137118]
[1739840714351,8.284e-05,95797.0,95796.0,0.33437118]
[1739840714680,8.284e-05,95797.0,95796.0,0.33137118]
[1739840714829,8.284e-05,95797.0,95796.0,0.33637118]
[1739840715041,8.284e-05,95797.0,95796.0,0.2870226]
[1739840717083,8.284e-05,95797.0,95796.0,0.2820226]
[1739840717468,8.284e-05,95797.0,95796.0,0.2870226]
[1739840718239,8.284e-05,95797.0,95796.0,0.2820226]
[1739840718623,8.284e-05,95797.0,95796.0,0.2870226]
[1739840718829,8.284e-05,95797.0,95796.0,0.35754988]
[1739840720524,8.284e-05,95797.0,95796.0,0.46005353]
[1739840722567,0.03119437,95817.0,95812.0,0.0772]
[1739840722770,0.03127729,95817.0,95812.0,0.1257]
[1739840723713,8.292e-05,95817.0,95812.0,0.1257]
[1739840723922,0.03073246,95817.0,95813.0,0.0754]
[1739840724140,8.292e-05,95817.0,95816.0,0.23395]
[1739840724351,8.292e-05,95817.0,95816.0,0.28275]
[1739840724770,8.292e-05,95817.0,95816.0,0.38525365]
[1739840724975,8.292e-05,95817.0,95816.0,0.46678382]
[1739840726652,8.292e-05,95817.0,95816.0,0.46978382]
[1739840727336,8.292e-05,95817.0,95816.0,0.46678382]
[1739840727756,0.00108292,95817.0,95816.0,0.47378382]
[1739840728001,8.292e-05,95817.0,95816.0,0.46678382]
[1739840728461,0.00108292,95817.0,95816.0,0.47378382]
[1739840728923,0.00125332,95817.0,95816.0,0.47378382]
[1739840729572,0.00025332,95817.0,95816.0,0.46678382]
[1739840729790,0.0001703,95840.0,95839.0,0.285012]
[1739840730004,0.00025322,95840.0,95839.0,0.32139742]
[1739840730481,0.00025322,95840.0,95839.0,0.16488542]
[1739840731112,0.00025322,95840.0,95839.0,0.16788542]
[1739840731330,0.00025322,95840.0,95839.0,0.16488542]
[1739840732421,0.03140763,95840.0,95839.0,0.16488542]
[1739840733353,0.03140763,95840.0,95839.0,0.16688542]
[1739840733556,0.03140763,95840.0,95839.0,0.16488542]
[1739840734465,0.03140763,95840.0,95839.0,0.16588542]
[1739840734689,0.03140763,95840.0,95839.0,0.16488542]
[1739840734905,0.03140763,95840.0,95839.0,0.16588542]
[1739840735494,0.03140763,95840.0,95839.0,0.1295]
[1739840736086,0.00025322,95840.0,95839.0,0.23200365]
[1739840736270,0.00025322,95840.0,95839.0,0.23100365]
[1739840736488,0.00025322,95840.0,95839.0,0.23300365]
[1739840737326,0.00025322,95840.0,95839.0,0.23100365]
[1739840737535,0.00025322,95840.0,95839.0,0.31149352]
[1739840737749,0.00025322,95840.0,95839.0,0.31549352]
[1739840737958,0.00025322,95840.0,95839.0,0.31149352]
[1739840738159,0.00025322,95840.0,95839.0,0.31549352]
[1739840738767,0.00025322,95840.0,95839.0,0.79399352]
[1739840739379,0.00025322,95840.0,95839.0,0.78999352]
[1739840739848,0.00025322,95840.0,95839.0,0.79399352]
[1739840740052,0.00025322,95840.0,95839.0,0.78999352]
[1739840740436,0.00025322,95840.0,95839.0,0.79499352]
[1739840740597,0.00025322,95840.0,95839.0,0.78999352]
[1739840740984,0.00025322,95840.0,95839.0,0.79699352]
[1739840741827,0.00025322,95840.0,95839.0,0.81999352]
[1739840743995,0.0001703,95847.0,95846.0,0.306501]
[1739840744185,0.00021443,95847.0,95846.0,0.55830465]
[1739840746505,0.00021443,95847.0,95846.0,0.56530465]
[1739840746709,0.00021443,95847.0,95846.0,1.43260465]
[1739840750299,0.00021443,95847.0,95846.0,1.42560465]
[1739840750481,0.00021443,95847.0,95846.0,1.43817465]
[1739840751184,0.00021443,95847.0,95846.0,1.44517465]
[1739840752411,0.00021443,95847.0,95846.0,1.43817465]
[1739840752848,0.00021443,95847.0,95846.0,1.44517465]
[1739840753147,0.00021443,95847.0,95846.0,1.43817465]
[1739840753474,0.00021443,95847.0,95846.0,1.44517465]
[1739840754189,0.00021443,95847.0,95846.0,1.43817465]
[1739840755696,0.00021443,95847.0,95846.0,1.44517465]
[1739840758495,0.00021443,95847.0,95846.0,1.43817465]
[1739840758911,0.00021443,95847.0,95846.0,1.44517465]
[1739840759163,0.00021443,95847.0,95846.0,1.43817465]
[1739840759540,0.00021443,95847.0,95846.0,1.44517465]
[1739840762006,0.00021443,95847.0,95846.0,1.43817465]
[1739840762356,0.00021443,95847.0,95846.0,1.44517465]
[1739840767699,4.3e-07,95847.0,95846.0,1.44517465]
[1739840771590,4.3e-07,95847.0,95846.0,1.27217465]
[1739840771937,4.3e-07,95847.0,95846.0,1.22457465]
[1739840772356,4.3e-07,95847.0,95846.0,1.36757465]
[1739840772564,4.3e-07,95847.0,95846.0,1.22457465]
[1739840772773,4.3e-07,95847.0,95846.0,1.36757465]
[1739840773182,4.3e-07,95847.0,95846.0,1.37457465]
[1739840773357,4.3e-07,95847.0,95846.0,1.36757465]
[1739840774728,4.3e-07,95847.0,95846.0,1.37457465]
[1739840775753,4.3e-07,95847.0,95846.0,1.42347465]
[1739840775960,4.3e-07,95847.0,95846.0,0.88467465]
[1739840776160,0.00017073,95847.0,95846.0,1.09497465]
[1739840776499,0.00017073,95847.0,95846.0,1.11097465]
[1739840777363,0.00017073,95847.0,95846.0,0.57217465]
[1739840777823,0.00017073,95847.0,95846.0,0.57917465]
[1739840779638,0.00017073,95847.0,95846.0,1.11797465]
[1739840783777,0.156436,95886.0,95877.0,0.156449]
[1739840783956,0.16619402,95888.0,95875.0,0.156452]
[1739840784122,0.01237101,95885.0,95875.0,0.156452]
[1739840784322,0.01237598,95887.0,95875.0,0.1929591]
[1739840784553,0.01236853,95884.0,95875.0,0.1929591]
[1739840784766,0.1688095,95886.0,95875.0,0.1929591]
[1739840784963,0.01236605,95883.0,95876.0,0.156451]
[1739840785176,0.01237101,95885.0,95877.0,0.04015681]
[1739840785370,0.01236357,95882.0,95877.0,0.04015681]
[1739840785596,0.001,95886.0,95877.0,0.04015681]
[1739840785747,0.03892422,95888.0,95877.0,0.04015681]
[1739840785748,0.01236108,95881.0,95879.0,0.156446]
[1739840785945,0.03892422,95888.0,95887.0,0.156434]
[1739840786290,0.0513036,95888.0,95887.0,0.156434]
[1739840786750,0.03892422,95888.0,95887.0,0.156434]
[1739840786890,8.753e-05,95888.0,95887.0,0.25893765]
[1739840787112,8.753e-05,95888.0,95887.0,0.3266525]
[1739840788983,8.753e-05,95888.0,95887.0,0.3296525]
[1739840796217,8.753e-05,95888.0,95887.0,0.4072525]
[1739840796399,8.753e-05,95888.0,95887.0,0.4532525]
[1739840797689,8.753e-05,95888.0,95887.0,0.4502525]
[1739840798097,8.753e-05,95888.0,95887.0,0.4532525]
[1739840798730,8.753e-05,95888.0,95887.0,0.4502525]
[1739840799536,8.753e-05,95888.0,95887.0,0.4732525]
[1739840800532,8.753e-05,95888.0,95887.0,0.4795929]
[1739840800944,0.00025773,95888.0,95887.0,0.4735929]
[1739840801141,0.00025773,95888.0,95887.0,0.4805929]
[1739840801520,0.00025773,95888.0,95887.0,0.4735929]
[1739840801899,0.00025773,95888.0,95887.0,0.4795929]
[1739840802150,0.00025773,95888.0,95887.0,0.4735929]
[1739840802361,0.00025773,95888.0,95887.0,0.4805929]
[1739840803518,0.00025773,95888.0,95887.0,1.0193929]
[1739840804155,0.00025773,95888.0,95887.0,1.0123929]
[1739840804588,0.00025773,95888.0,95887.0,1.0193929]
[1739840804795,0.00025773,95888.0,95887.0,1.1693929]
[1739840805009,0.00025773,95888.0,95887.0,1.1623929]
[1739840805225,0.00025773,95888.0,95887.0,1.1693929]
[1739840805599,0.00025773,95888.0,95887.0,1.1623929]
[1739840806073,0.00025773,95888.0,95887.0,1.1693929]
[1739840806497,0.00025773,95888.0,95887.0,1.20830291]
[1739840807106,0.00025773,95888.0,95887.0,1.20130291]
[1739840807528,0.00025773,95888.0,95887.0,1.20830291]
[1739840809360,3.3e-07,95890.0,95889.0,0.2767]
[1739840809562,6.8e-07,95890.0,95889.0,0.6611373]
[1739840810500,6.8e-07,95890.0,95889.0,0.6681373]
[1739840811433,6.8e-07,95890.0,95889.0,1.2069373]
[1739840811639,6.8e-07,95890.0,95889.0,1.22743591]
[1739840811863,6.8e-07,95890.0,95889.0,1.22043591]
[1739840812061,6.8e-07,95890.0,95889.0,1.22743591]
[1739840812636,0.03801517,95939.0,95936.0,0.156352]
[1739840812839,0.03801517,95939.0,95897.0,0.312835]
[1739840812840,0.00013233,95920.0,95919.0,0.156381]
[1739840813100,0.00013233,95920.0,95919.0,0.25888465]
[1739840814127,0.00013233,95920.0,95919.0,0.26388465]
[1739840814585,0.00013233,95920.0,95919.0,0.49138465]
[1739840814791,0.00013233,95920.0,95919.0,0.50395465]
[1739840815010,0.00013233,95920.0,95919.0,0.49895465]
[1739840815246,0.00013233,95920.0,95919.0,0.50595465]
[1739840816582,0.00013233,95920.0,95919.0,0.49895465]
[1739840816790,0.00013233,95920.0,95919.0,0.50595465]
[1739840817226,0.00013233,95920.0,95919.0,0.49895465]
[1739840817416,0.00013233,95920.0,95919.0,0.50595465]
[1739840817611,0.00013233,95920.0,95919.0,0.52895465]
[1739840817817,0.00013233,95920.0,95919.0,0.52195465]
[1739840818026,0.00013233,95920.0,95919.0,0.52895465]
[1739840818225,0.00013233,95920.0,95919.0,1.06775465]
[1739840818428,0.00013233,95920.0,95919.0,1.06075465]
[1739840820064,0.00013233,95920.0,95919.0,1.06775465]
[1739840820386,0.00013233,95920.0,95919.0,1.03775465]
[1739840820539,0.106545,95940.0,95920.0,0.15]
[1739840820739,0.03807226,95942.0,95939.0,0.156349]
[1739840820898,0.0001703,95943.0,95940.0,0.156347]
[1739840821311,0.01258624,95942.0,95940.0,0.156347]
[1739840821540,0.01258624,95942.0,95941.0,0.156346]
[1739840821749,0.03944013,95942.0,95941.0,0.2136738]
[1739840822000,0.0001703,95943.0,95942.0,0.156344]
[1739840822171,0.0001703,95943.0,95942.0,0.25884765]
[1739840822747,0.0001703,95943.0,95942.0,0.49044765]
[1739840824723,0.0001703,95943.0,95942.0,0.49744765]
[1739840824927,0.0001703,95943.0,95942.0,0.56084787]
[1739840826068,0.0001703,95943.0,95942.0,0.60794787]
[1739840826343,0.0001703,95943.0,95942.0,0.62394787]
[1739840826692,0.0001703,95943.0,95942.0,0.63094787]
[1739840826892,0.0001703,95943.0,95942.0,0.62394787]
[1739840827222,0.0001703,95943.0,95942.0,1.16974787]
[1739840827685,0.0001703,95943.0,95942.0,1.16274787]
[1739840827948,0.0001703,95943.0,95942.0,1.16974787]
[1739840828359,0.0001703,95943.0,95942.0,1.16274787]
[1739840829624,0.0001703,95943.0,95942.0,1.16974787]
[1739840829842,0.0001703,95943.0,95942.0,1.16274787]
[1739840830054,0.0001703,95943.0,95942.0,1.13974787]
[1739840830270,0.0001703,95943.0,95942.0,1.14674787]
[1739840830900,0.0001703,95943.0,95942.0,1.13974787]
[1739840831100,0.0001703,95943.0,95942.0,1.16274787]
[1739840831304,0.0001703,95943.0,95942.0,1.16974787]
[1739840831698,0.0001703,95943.0,95942.0,1.16274787]
[1739840832880,0.0001703,95943.0,95942.0,1.16974787]
[1739840833294,0.0001703,95943.0,95942.0,1.16274787]
[1739840834109,0.0001703,95943.0,95942.0,1.16974787]
[1739840834664,3e-07,95943.0,95942.0,1.16274787]
[1739840834888,3e-07,95943.0,95942.0,1.16974787]
[1739840835703,3e-07,95943.0,95942.0,1.20974787]
[1739840836041,3e-07,95943.0,95942.0,1.20274787]
[1739840836243,3e-07,95943.0,95942.0,1.20974787]
[1739840836672,3e-07,95943.0,95942.0,1.20274787]
[1739840837012,3e-07,95943.0,95942.0,1.20974787]
[1739840837213,3e-07,95943.0,95942.0,1.20274787]
[1739840837572,3e-07,95943.0,95942.0,1.20974787]
[1739840837769,3e-07,95943.0,95942.0,1.20274787]
[1739840839197,3e-07,95943.0,95942.0,1.20974787]
[1739840839519,3e-07,95943.0,95942.0,1.20274787]
[1739840839725,3e-07,95943.0,95942.0,1.30326937]
[1739840839902,1.91812418,96000.0,95955.0,0.0757]
[1739840840103,1.91812418,96000.0,95966.0,0.0757]
[1739840840104,0.00013235,95969.0,95966.0,0.0757]
[1739840840317,0.00013235,95969.0,95968.0,0.47830565]
[1739840841583,0.00013235,95969.0,95968.0,0.55400565]
[1739840842134,3.5e-07,95969.0,95968.0,0.55400565]
[1739840842740,3.5e-07,95969.0,95968.0,1.42130565]
[1739840842944,3.5e-07,95969.0,95968.0,1.4960205]
[1739840847627,3.5e-07,95969.0,95968.0,1.51543199]
[1739840848691,3.5e-07,95969.0,95968.0,1.50843199]
[1739840849032,3.5e-07,95969.0,95968.0,1.51543199]
[1739840849214,3.5e-07,95969.0,95968.0,1.53543199]
[1739840849424,4.5e-07,95969.0,95968.0,1.53543199]
[1739840850683,4.5e-07,95969.0,95968.0,1.55543199]
[1739840851100,4.5e-07,95969.0,95968.0,1.63860547]
[1739840851740,4.5e-07,95969.0,95968.0,1.63160547]
[1739840852121,4.5e-07,95969.0,95968.0,1.63860547]
[1739840852328,4.5e-07,95969.0,95968.0,1.63160547]
[1739840852712,4.5e-07,95969.0,95968.0,1.63860547]
[1739840854131,1.91812418,96000.0,95999.0,0.306251]
[1739840854335,1.91812418,96000.0,95999.0,0.79913975]
[1739840854547,1.9185651,96000.0,95999.0,0.79913975]
[1739840854758,1.93134018,96000.0,95999.0,0.79913975]
[1739840855339,0.82091618,96000.0,95999.0,0.81855124]
[1739840856055,0.82091618,96000.0,95999.0,0.86108801]
[1739840856471,0.82091618,96000.0,95999.0,0.86808801]
[1739840856680,0.82091618,96000.0,95999.0,0.86108801]
[1739840856881,0.82091618,96000.0,95999.0,0.94428801]
[1739840857091,0.74437368,96000.0,95999.0,0.94428801]
[1739840857305,0.74437368,96000.0,95999.0,1.52968801]
[1739840857526,0.0004,96009.0,96008.0,0.412436]
[1739840857728,0.00053222,96009.0,96008.0,0.56153965]
[1739840857942,0.00053222,96009.0,96008.0,0.6292545]
[1739840858965,0.00053222,96009.0,96008.0,0.6362545]
[1739840859578,0.00053222,96009.0,96008.0,0.65566599]
[1739840862026,0.01016286,96055.0,96009.0,0.173]
[1739840862237,0.0001322,96055.0,96037.0,0.156188]
[1739840862448,0.0001322,96055.0,96038.0,0.1191636]
[1739840862676,0.0001322,96055.0,96038.0,0.1035448]
[1739840862886,0.04320823,96055.0,96046.0,0.156174]
[1739840863097,0.0001322,96055.0,96039.0,0.208248]
[1739840863328,0.04311924,96055.0,96040.0,0.10250365]
[1739840863532,0.0001322,96055.0,96040.0,0.25868765]
[1739840863739,0.01079371,96054.0,96040.0,0.25868765]
[1739840863943,0.01079371,96054.0,96041.0,0.02586877]
[1739840864150,0.01079371,96054.0,96042.0,0.10250365]
[1739840864374,0.04307302,96055.0,96043.0,0.156179]
[1739840864600,0.04307302,96055.0,96043.0,0.10250365]
[1739840864806,0.01079371,96054.0,96043.0,0.10250365]
[1739840865196,0.208205,96059.0,96043.0,0.10250365]
[1739840865408,0.00899228,96053.0,96044.0,0.04689347]
[1739840865640,0.156158,96056.0,96044.0,0.04689347]
[1739840865874,0.00898981,96052.0,96044.0,0.04689347]
[1739840866055,0.15616,96055.0,96044.0,0.04689347]
[1739840866292,0.00898734,96051.0,96043.0,0.10363585]
[1739840866435,0.156161,96055.0,96043.0,0.10363585]
[1739840866651,0.00898486,96050.0,96043.0,0.12861823]
[1739840866855,0.04305098,96056.0,96043.0,0.0001322]
[1739840867062,0.156178,96045.0,96043.0,0.0001322]
[1739840867421,0.208232,96047.0,96043.0,0.0001322]
[1739840867422,0.00897002,96044.0,96043.0,0.0001322]
[1739840867903,0.208219,96053.0,96044.0,0.002]
[1739840868104,3.412994,96052.0,96044.0,0.002]
[1739840868315,3.412994,96052.0,96043.0,0.0001322]
[1739840868518,0.3119,96051.0,96043.0,0.0011322]
[1739840868637,0.15617,96049.0,96043.0,0.0001322]
[1739840868840,0.04241545,96056.0,96043.0,0.0001322]
[1739840869038,3.412994,96055.0,96043.0,0.0001322]
[1739840869234,0.156178,96044.0,96043.0,0.0001322]
[1739840869439,0.01125839,96056.0,96043.0,0.0001322]
[1739840869679,0.156177,96045.0,96043.0,0.0001322]
[1739840869882,0.156178,96044.0,96043.0,0.0001322]
[1739840870335,0.156176,96045.0,96043.0,0.0001322]
[1739840870738,0.156178,96044.0,96043.0,0.0001322]
[1739840871141,0.156175,96046.0,96043.0,0.0001322]
[1739840871850,0.156175,96046.0,96043.0,0.0011322]
[1739840872024,0.156175,96046.0,96043.0,0.0001322]
[1739840872303,0.156173,96047.0,96043.0,0.0001322]
[1739840872484,0.20822,96053.0,96043.0,0.0001322]
[1739840872686,0.156175,96046.0,96043.0,0.0001322]
[1739840872891,0.00897947,96045.0,96043.0,0.0001322]
[1739840873451,0.00897947,96045.0,96043.0,0.000472]
[1739840873791,0.208227,96049.0,96043.0,0.000472]
[1739840873792,0.156171,96048.0,96043.0,0.000472]
[1739840874007,0.008977,96044.0,96043.0,0.000472]
[1739840874250,0.156171,96048.0,96043.0,0.000472]
[1739840874452,0.008977,96044.0,96043.0,0.156652]
[1739840874566,0.0001699,96055.0,96043.0,0.0161372]
[1739840874777,0.0001699,96055.0,96043.0,0.000472]
[1739840875018,0.0089846,96054.0,96043.0,0.000472]
[1739840875540,0.0089846,96054.0,96043.0,0.001472]
[1739840875681,0.0089846,96054.0,96043.0,0.000472]
[1739840875887,0.1651466,96054.0,96043.0,0.000472]
[1739840876087,0.1651466,96054.0,96043.0,0.0369628]
[1739840876088,0.156166,96052.0,96043.0,0.0369628]
[1739840876289,0.00898756,96051.0,96043.0,0.000472]
[1739840877225,0.156176,96045.0,96043.0,0.000472]
[1739840877405,0.156174,96047.0,96043.0,0.000472]
[1739840877609,0.00897204,96044.0,96043.0,0.001472]
[1739840877861,0.156174,96047.0,96043.0,0.000472]
[1739840878325,0.00897699,96046.0,96043.0,0.000472]
[1739840878811,0.00897699,96046.0,96043.0,0.002472]
[1739840879010,0.156165,96052.0,96043.0,0.000472]
[1739840879227,3.210467,96051.0,96043.0,0.003472]
[1739840879521,0.16512969,96051.0,96043.0,0.003472]
[1739840879936,0.00896269,96051.0,96043.0,0.003472]
[1739840880258,0.156168,96050.0,96043.0,0.003472]
[1739840880469,0.00895774,96049.0,96043.0,0.000472]
[1739840880676,0.208216,96054.0,96043.0,0.000472]
[1739840880882,0.0001699,96055.0,96043.0,0.004472]
[1739840880883,3.63017964,96053.0,96043.0,0.004472]
[1739840881087,0.156171,96049.0,96043.0,0.000472]
[1739840881329,0.00895527,96048.0,96043.0,0.000472]
[1739840881687,0.16512727,96048.0,96043.0,0.002472]
[1739840881918,0.16512727,96048.0,96043.0,0.000472]
[1739840882120,0.16512727,96048.0,96043.0,0.001472]
[1739840882300,0.16512727,96048.0,96043.0,0.000472]
[1739840882775,0.00895527,96048.0,96043.0,0.000472]
[1739840883194,0.0001699,96055.0,96043.0,0.000472]
[1739840883401,0.156176,96046.0,96043.0,0.000472]
[1739840883690,0.02667519,96055.0,96043.0,0.000472]
[1739840883939,0.00895773,96045.0,96043.0,0.003472]
[1739840884202,0.156168,96051.0,96043.0,0.000472]
[1739840884459,0.00895525,96044.0,96043.0,0.000472]
[1739840884692,0.156168,96051.0,96043.0,0.000472]
[1739840884977,0.20822,96052.0,96043.0,0.000472]
[1739840885220,0.1651401,96050.0,96043.0,0.001472]
[1739840885468,0.00897257,96051.0,96043.0,0.000472]
[1739840885662,0.00896762,96049.0,96043.0,0.000472]
[1739840885867,0.0089701,96050.0,96044.0,0.0364905]
[1739840886001,0.00896515,96048.0,96043.0,0.004472]
[1739840886204,0.00896762,96049.0,96043.0,0.004472]
[1739840886400,0.156162,96054.0,96043.0,0.004472]
[1739840886633,0.00896515,96048.0,96044.0,0.03689]
[1739840886802,0.156162,96054.0,96044.0,0.03689]
[1739840887005,0.00896268,96047.0,96044.0,0.03689]
[1739840887228,0.0001699,96055.0,96044.0,0.03689]
[1739840887430,0.0089602,96046.0,96045.0,0.024561]
[1739840887628,0.0001699,96055.0,96045.0,0.024561]
[1739840888033,0.156165,96052.0,96045.0,0.024561]
[1739840888441,0.00897257,96051.0,96045.0,0.024561]
[1739840888663,0.00897257,96051.0,96045.0,0.025561]
[1739840889074,0.156165,96052.0,96045.0,0.024561]
[1739840889403,0.2083859,96055.0,96045.0,0.024561]
[1739840889404,0.16513957,96051.0,96045.0,0.024561]
[1739840889636,0.16513957,96051.0,96043.0,0.000472]
[1739840889861,0.00897257,96051.0,96043.0,0.000472]
[1739840890537,0.00897257,96051.0,96045.0,0.002]
[1739840890774,0.00897257,96051.0,96043.0,0.000472]
[1739840890957,0.156167,96052.0,96043.0,0.002472]
[1739840891106,0.0089701,96050.0,96043.0,0.002472]
[1739840891314,0.156167,96051.0,96043.0,0.0391624]
[1739840891512,0.0089701,96050.0,96043.0,0.0391624]
[1739840891718,0.156163,96053.0,96043.0,0.0391624]
[1739840891939,0.00897505,96052.0,96044.0,0.06118364]
[1739840892304,0.16514005,96052.0,96043.0,0.0391624]
[1739840892717,0.00897505,96052.0,96051.0,0.156167]
[1739840892920,0.0001699,96055.0,96054.0,0.156162]
[1739840894375,0.0001699,96055.0,96054.0,0.160162]
[1739840897139,0.0001699,96055.0,96054.0,0.156162]
[1739840897312,0.0001699,96055.0,96054.0,0.160162]
[1739840897502,0.0001699,96055.0,96054.0,0.2126178]
[1739840898611,0.0001699,96055.0,96054.0,0.0564558]
[1739840898812,0.0001699,96055.0,96054.0,0.004]
[1739840899218,0.0001699,96055.0,96054.0,0.1348]
[1739840900147,0.00914898,96055.0,96054.0,0.1348]
[1739840900655,0.00914898,96055.0,96054.0,0.23730365]
[1739840900836,0.0001701,96065.0,96064.0,0.156145]
[1739840901038,0.0001701,96065.0,96064.0,0.62296295]
[1739840901249,0.0001701,96065.0,96064.0,0.62192213]
[1739840901453,0.0001701,96065.0,96064.0,0.64492213]
[1739840902276,0.0001701,96065.0,96064.0,0.53874865]
[1739840902490,0.0001701,96065.0,96064.0,0.59859446]
[1739840902628,7.806e-05,96065.0,96064.0,0.40816572]
[1739840903038,7.806e-05,96065.0,96064.0,0.25202072]
[1739840903451,7.806e-05,96065.0,96064.0,0.25902072]
[1739840903659,7.806e-05,96065.0,96064.0,0.25202072]
[1739840903879,7.806e-05,96065.0,96064.0,0.23260365]
[1739840904091,7.806e-05,96065.0,96064.0,0.007]
[1739840904303,7.806e-05,96065.0,96064.0,0.01599]
[1739840904716,7.806e-05,96065.0,96064.0,0.11849365]
[1739840904918,7.806e-05,96065.0,96064.0,0.19049365]
[1739840905118,7.806e-05,96065.0,96064.0,0.24553445]
[1739840905346,0.10614379,96090.0,96064.0,0.24449365]
[1739840905548,0.10614379,96090.0,96065.0,0.12799382]
[1739840905837,0.10614379,96090.0,96066.0,0.28719]
[1739840906026,0.10614379,96090.0,96068.0,0.15]
[1739840906226,0.10614379,96090.0,96076.0,0.208167]
[1739840906442,0.10614379,96090.0,96080.0,0.156119]
[1739840906682,0.10614379,96090.0,96081.0,0.04667897]
[1739840906886,0.10614379,96090.0,96081.0,0.156117]
[1739840907063,0.10614379,96090.0,96076.0,0.10250365]
[1739840907260,0.10614379,96090.0,96084.0,0.0827]
[1739840907541,0.00013215,96090.0,96086.0,0.156108]
[1739840907701,0.00013215,96090.0,96088.0,0.156105]
[1739840907872,0.00013215,96090.0,96089.0,0.10250365]
[1739840908073,0.00013215,96090.0,96089.0,0.10354426]
[1739840908486,0.00013215,96090.0,96089.0,0.10250365]
[1739840908689,0.00030245,96090.0,96089.0,0.26777713]
[1739840908891,0.00030245,96090.0,96089.0,0.33518727]
[1739840909291,0.00030245,96090.0,96089.0,0.48518727]
[1739840910957,0.00030245,96090.0,96089.0,0.49218727]
[1739840911104,0.00030245,96090.0,96089.0,0.48518727]
[1739840911318,0.00030245,96090.0,96089.0,0.55398727]
[1739840911592,0.00030245,96090.0,96089.0,0.56098727]
[1739840914219,4.5e-07,96090.0,96089.0,0.56098727]